fUST/lending_fUST_20250111
["ID","MTS","AMOUNT","RATE_DAILY","PERIOD"]
[348479949,1736560240569,-506.37247431,0.00021917,3]
[348479952,1736560240580,-513.12795035,0.00021917,3]
[348479954,1736560240592,-505.78674804,0.00021917,3]
[348479956,1736560240602,-506.5493535,0.00021917,3]
[348479958,1736560240614,-511.4782094,0.00021917,3]
[348479960,1736560240625,-547.88234981,0.00021917,3]
[348479963,1736560240636,-510.52181251,0.00021917,3]
[348479965,1736560240651,-510.33513463,0.00021917,3]
[348479967,1736560240663,-505.76992343,0.00021917,3]
[348479970,1736560240681,-536.30212616,0.00021917,3]
[348479972,1736560240693,-506.00594223,0.00021917,3]
[348479974,1736560240704,-500.0,0.00021917,3]
[348479976,1736560240716,-3317.38,0.00021917,3]
[348479978,1736560240728,-1080.37,0.00021917,3]
[348479981,1736560240739,-500.0,0.00021917,3]
[348479983,1736560240751,-508.35372806,0.00021917,3]
[348479985,1736560240762,-510.38901976,0.00021917,3]
[348479987,1736560240773,-512.4667322,0.00021917,3]
[348479989,1736560240785,-3420.94,0.00021917,3]
[348479991,1736560240796,-720.6,0.00021917,3]
[348479994,1736560240807,-523.82327389,0.00021917,3]
[348479996,1736560240818,-500.0,0.00021917,3]
[348479998,1736560240829,-508.86888085,0.00021917,3]
[348480000,1736560240840,-500.0,0.00021917,3]
[348480002,1736560240851,-500.0,0.00021917,3]
[348480004,1736560240862,-1237.74,0.00021917,3]
[348480008,1736560240873,-507.21526964,0.00021917,3]
[348480010,1736560240884,-500.0,0.00021917,3]
[348480012,1736560240895,-3898.41725115,0.00021917,3]
[348480038,1736560241149,-1812.33113915,0.00021917,3]
[348480039,1736560241162,-7146.7116097,0.00021917,3]
[348480040,1736560241171,-500.53,0.00021917,3]
[348480041,1736560241180,-316.71906712,0.00021917,3]
[348480042,1736560241192,-189.74015162,0.00021917,3]
[348480043,1736560241202,-507.2671052,0.00021917,3]
[348480044,1736560241212,-506.62891655,0.00021917,3]
[348480045,1736560241221,-500.0,0.00021917,3]
[348480046,1736560241231,-678.61,0.00021917,3]
[348480047,1736560241240,-507.60319418,0.00021917,3]
[348480049,1736560241250,-512.27841832,0.00021917,3]
[348480050,1736560241259,-505.60751182,0.00021917,3]
[348480052,1736560241268,-500.0,0.00021917,3]
[348480054,1736560241278,-500.0,0.00021917,3]
[348480056,1736560241288,-500.0,0.00021917,3]
[348480058,1736560241297,-500.0,0.00021917,3]
[348480059,1736560241307,-500.0,0.00021917,3]
[348480061,1736560241317,-500.0,0.00021917,3]
[348480062,1736560241327,-500.0,0.00021917,3]
[348480063,1736560241337,-500.0,0.00021917,3]
[348480065,1736560241346,-500.0,0.00021917,3]
[348480066,1736560241356,-628.6,0.00021917,3]
[348480068,1736560241366,-561.44,0.00021917,3]
[348480070,1736560241376,-513.87903805,0.00021917,3]
[348480072,1736560241386,-637.97,0.00021917,3]
[348480073,1736560241395,-1337.17406009,0.00021917,3]
[348480074,1736560241407,-67.21593991,0.00021917,3]
[348480075,1736560241417,-500.0,0.00021973,2]
[348480076,1736560241426,-321.22609468,0.00021973,2]
[348480077,1736560241436,-500.0,0.0002219,3]
[348480078,1736560241445,-500.0,0.00022191,3]
[348480079,1736560241455,-505.50567939,0.00022191,3]
[348480080,1736560241464,-507.32547958,0.00022191,3]
[348480081,1736560241474,-512.62784525,0.00022191,3]
[348480082,1736560241483,-500.0,0.00022191,3]
[348480083,1736560241493,-506.2512286,0.00022191,3]
[348480084,1736560241502,-538.8,0.00022191,3]
[348480085,1736560241512,-500.0,0.00022191,3]
[348480086,1736560241521,-500.0,0.00022191,3]
[348480087,1736560241531,-500.0,0.00022191,3]
[348480088,1736560241540,-601.78243504,0.00022191,3]
[348480089,1736560241549,-500.0,0.00022191,3]
[348480090,1736560241559,-500.0,0.00022191,3]
[348480091,1736560241568,-500.0,0.00022191,3]
[348480092,1736560241578,-243.60489456,0.00022191,3]
[348480093,1736560241588,-500.0,0.00022191,3]
[348480094,1736560241598,-107.57721434,0.00022191,3]
[348480095,1736560241611,-392.42278566,0.00022191,3]
[348480096,1736560241621,-500.0,0.00022191,3]
[348480097,1736560241632,-409.9317858,0.00022191,3]
[348480098,1736560241642,-528.75,0.00022191,3]
[348480099,1736560241653,-503.35,0.00022191,3]
[348480100,1736560241662,-500.0,0.00022191,3]
[348480101,1736560241676,-607.22,0.00022191,3]
[348480102,1736560241687,-516.92,0.00022191,3]
[348480103,1736560241696,-150.19892162,0.00022191,3]
[348480104,1736560241705,-652.09,0.00022191,3]
[348480105,1736560241715,-500.0,0.00022191,2]
[348480106,1736560241725,-500.0,0.00022191,3]
[348480107,1736560241734,-500.0,0.00022191,2]
[348480108,1736560241745,-1790.24,0.00022191,3]
[348480109,1736560241756,-500.0,0.00022191,3]
[348480110,1736560241767,-500.0,0.00022191,3]
[348480111,1736560241779,-500.0,0.00022191,3]
[348480112,1736560241789,-1596.14082181,0.00022191,3]
[348480113,1736560241967,-1987.65917819,0.00022191,3]
[348480114,1736560241978,-666.45,0.00022191,3]
[348480115,1736560241988,-630.54,0.00022191,3]
[348480116,1736560241998,-500.0,0.00022191,3]
[348480117,1736560242008,-278.38586267,0.00022191,3]
[348480123,1736560243291,-221.61413733,0.00022191,3]
[348480124,1736560243301,-254.93671673,0.00022191,3]
[348480125,1736560243449,-691.15,0.00022191,3]
[348480126,1736560243461,-134.28328327,0.00022191,3]
[348480127,1736560243473,-3317.38,0.00022191,3]
[348480128,1736560243483,-500.0,0.00022191,3]
[348480129,1736560243493,-720.6,0.00022191,3]
[348480130,1736560243503,-3420.94,0.00022191,3]
[348480131,1736560243513,-1237.74,0.00022191,3]
[348480132,1736560243523,-274.15810389,0.00022191,3]
[348480133,1736560243533,-12857.46,0.00022191,3]
[348480134,1736560243544,-500.53,0.00022191,3]
[348480135,1736560243554,-562.31891673,0.00022191,3]
[348480172,1736561433284,-155.08034227,0.00020091,2]
[348480173,1736561433294,-200.03393537,0.00020091,2]
[348480174,1736561433304,-180.3775747,0.00020769,2]
[348480175,1736561433315,-1460.0,0.00020895,2]
[348480176,1736561433325,-160.93096434,0.00021247,5]
[348480177,1736561433334,-619.749,0.0002137,2]
[348480178,1736561433345,-150.0,0.000214,2]
[348480179,1736561433354,-176.56821865,0.00021817,2]
[348480180,1736561433364,-191.96023883,0.00021817,2]
[348480181,1736561433373,-153.0,0.000219,2]
[348480182,1736561433383,-500.0,0.00021916,2]
[348480183,1736561433393,-500.0,0.00021916,2]
[348480184,1736561433403,-534.4658085,0.00021916,2]
[348480185,1736561433414,-500.0,0.00021916,2]
[348480186,1736561433425,-506.06554988,0.00021916,2]
[348480187,1736561433434,-500.0,0.00021916,2]
[348480188,1736561433444,-500.0,0.00021916,2]
[348480189,1736561433453,-500.0,0.00021916,2]
[348480190,1736561433463,-500.0,0.00021916,2]
[348480191,1736561433473,-500.0,0.00021916,2]
[348480192,1736561433483,-401.88700954,0.00021916,2]
[348480193,1736561433494,-500.0,0.00021916,2]
[348480195,1736561433644,-500.0,0.00021916,2]
[348480196,1736561433666,-500.0,0.00021916,2]
[348480197,1736561433676,-500.0,0.00021916,2]
[348480198,1736561433686,-500.0,0.00021916,2]
[348480199,1736561433697,-500.0,0.00021916,2]
[348480200,1736561433707,-500.0,0.00021916,2]
[348480201,1736561433716,-500.0,0.00021916,2]
[348480202,1736561433728,-187.39671528,0.00021916,2]
[348480203,1736561433739,-500.0,0.00021916,2]
[348480204,1736561433749,-500.0,0.00021916,2]
[348480205,1736561433760,-495.14103339,0.00021916,2]
[348480206,1736561433770,-243.04407947,0.00021916,2]
[348480207,1736561433780,-418.81526544,0.00021916,2]
[348480208,1736561433790,-311.33634049,0.00021917,3]
[348480209,1736561433803,-191.98326992,0.00021917,3]
[348480210,1736561433814,-464.3151083,0.00021917,3]
[348480211,1736561433842,-37.41896983,0.00021917,3]
[348480212,1736561433853,-305.00769834,0.00021917,3]
[348480213,1736561433866,-342.81138945,0.00021917,3]
[348480214,1736561433876,-386.68244495,0.00021917,3]
[348480215,1736561433888,-115.1086969,0.00021917,3]
[348480216,1736561433898,-384.8913031,0.00021917,3]
[348480547,1736562633005,-150.0,0.00019817,2]
[348480548,1736562633015,-153.61429973,0.0002,20]
[348480549,1736562633026,-391.3962371,0.00020877,2]
[348480550,1736562633036,-593.555,0.0002137,2]
[348480551,1736562633046,-210.0,0.000218,4]
[348480552,1736562633056,-210.0,0.000218,5]
[348480553,1736562633066,-210.0,0.000218,3]
[348480554,1736562633077,-228.11628161,0.000218,4]
[348480555,1736562633088,-210.0,0.000218,5]
[348480556,1736562633098,-122.61491248,0.00021817,2]
[348480575,1736562638858,-69.34532634,0.00021817,2]
[348480576,1736562638867,-1211.6939146,0.000219,2]
[348480577,1736562638877,-200.61,0.00021907,2]
[348480578,1736562638886,-300.0,0.00021916,2]
[348480579,1736562638896,-1000.0,0.00021916,2]
[348480580,1736562638906,-681.7318094,0.00021917,5]
[348480591,1736562640803,-1187.31977576,0.00021917,5]
[348480592,1736562640817,-1309.54434981,0.00021917,5]
[348480593,1736562640829,-360.89015631,0.00021917,5]
[348480594,1736562640922,-508.34424798,0.00021917,5]
[348480613,1736562643875,-3780.92352993,0.00021917,5]
[348480614,1736562643888,-2197.29445835,0.00021917,5]
[348480637,1736562646773,-3865.32241925,0.00021917,5]
[348480639,1736562646783,-4163.51733469,0.00021917,5]
[348480641,1736562646795,-154.26,0.00021917,2]
[348480643,1736562646805,-501.23596329,0.00021917,3]
[348480645,1736562646815,-257.74245251,0.00021917,3]
[348480647,1736562646825,-502.73281314,0.00021917,3]
[348480649,1736562646835,-503.35176708,0.00021917,3]
[348480650,1736562646844,-501.7162061,0.00021917,3]
[348480652,1736562646854,-617.04403699,0.00021917,3]
[348480655,1736562646865,-502.38782877,0.00021917,3]
[348480657,1736562646875,-503.10562693,0.00021917,3]
[348480658,1736562646885,-500.0,0.00021917,3]
[348480660,1736562646898,-500.0,0.00021917,3]
[348480662,1736562646912,-200.0,0.00021917,3]
[348480664,1736562646921,-500.0,0.00021917,3]
[348480666,1736562646931,-223.59036079,0.00021917,3]
[348480668,1736562646941,-500.0,0.00021917,3]
[348480670,1736562646952,-505.13013231,0.00021917,3]
[348480672,1736562646962,-500.0,0.00021917,3]
[348480673,1736562646972,-500.0,0.00021917,3]
[348480675,1736562646983,-648.8839855,0.00021917,3]
[348480678,1736562646994,-507.57860866,0.00021917,3]
[348480680,1736562647004,-500.0,0.00021917,3]
[348480681,1736562647013,-501.68573305,0.00021917,3]
[348480684,1736562647023,-500.0,0.00021917,3]
[348480686,1736562647033,-502.08189049,0.00021917,2]
[348480688,1736562647043,-504.43311157,0.00021917,3]
[348480690,1736562647053,-504.01673614,0.00021917,3]
[348480691,1736562647063,-500.0,0.00021917,3]
[348480694,1736562647073,-500.0,0.00021917,3]
[348480696,1736562647082,-500.0,0.00021917,3]
[348480697,1736562647093,-1366.7,0.00021917,3]
[348480699,1736562647103,-500.0,0.00021917,3]
[348480701,1736562647113,-500.0,0.00021917,3]
[348480703,1736562647122,-505.8482735,0.00021917,3]
[348480705,1736562647132,-500.0,0.00021917,3]
[348480707,1736562647142,-508.44284385,0.00021917,3]
[348480709,1736562647156,-500.0,0.00021917,3]
[348480711,1736562647166,-500.0,0.00021917,3]
[348480713,1736562647176,-505.09681786,0.00021917,3]
[348480716,1736562647186,-500.0,0.00021917,3]
[348480718,1736562647197,-500.0,0.00021917,3]
[348480720,1736562647207,-500.0,0.00021917,3]
[348480722,1736562647218,-500.0,0.00021917,3]
[348480724,1736562647228,-500.0,0.00021917,3]
[348480726,1736562647237,-541.82,0.00021917,3]
[348480728,1736562647247,-500.0,0.00021917,3]
[348480730,1736562647256,-504.7,0.00021917,3]
[348480731,1736562647265,-500.0,0.00021917,3]
[348480734,1736562647275,-500.0,0.00021917,3]
[348480736,1736562647285,-515.37193227,0.00021917,3]
[348480738,1736562647294,-500.0,0.00021917,3]
[348480740,1736562647304,-500.0,0.00021917,3]
[348480742,1736562647315,-500.0,0.00021917,3]
[348480744,1736562647324,-500.0,0.00021917,3]
[348480746,1736562647335,-17.94330024,0.00021917,2]
[348481422,1736563838209,-150.0,0.00019817,2]
[348481424,1736563838219,-607.384,0.0002108,2]
[348481426,1736563838229,-500.0,0.00021899,2]
[348481428,1736563838238,-1171.30411764,0.000219,2]
[348481430,1736563838248,-300.0,0.00021915,2]
[348481431,1736563838257,-500.0,0.00021916,2]
[348481432,1736563838266,-192.59238342,0.00021916,2]
[348482109,1736565032281,-150.0,0.00019816,2]
[348482110,1736565032293,-300.0,0.00019995,2]
[348482111,1736565032303,-163.315005,0.00019995,2]
[348482112,1736565032316,-336.684995,0.00019995,2]
[348482113,1736565032326,-500.0,0.00019995,2]
[348482114,1736565032337,-110.37445199,0.00019995,2]
[348482115,1736565032348,-389.62554801,0.00019995,2]
[348482116,1736565032359,-500.0,0.00019995,2]
[348482117,1736565032370,-521.05643976,0.00019995,2]
[348482118,1736565032380,-332.79344816,0.00019995,2]
[348482119,1736565032390,-500.0,0.00019995,2]
[348482120,1736565032399,-500.0,0.00019995,2]
[348482121,1736565032409,-500.0,0.00019995,2]
[348482122,1736565032419,-500.0,0.00019995,2]
[348482123,1736565032428,-500.0,0.00019995,2]
[348482124,1736565032437,-500.0,0.00019995,2]
[348482125,1736565032447,-500.0,0.00019995,2]
[348482126,1736565032456,-500.0,0.00019995,2]
[348482127,1736565032465,-6945.68537339,0.00019996,5]
[348482128,1736565032475,-2081.75866734,0.00019996,5]
[348482129,1736565032485,-151.0,0.00019998,2]
[348482130,1736565032494,-164.684042,0.00019998,2]
[348482131,1736565032504,-151.0,0.00019999,2]
[348482132,1736565032513,-151.0,0.00019999,2]
[348482133,1736565032523,-151.0,0.00019999,2]
[348482135,1736565032532,-151.0,0.00019999,2]
[348482137,1736565032541,-151.0,0.00019999,2]
[348482139,1736565032551,-151.0,0.00019999,2]
[348482141,1736565032560,-152.866207,0.00019999,2]
[348482143,1736565032569,-293.17068581,0.00019999,2]
[348482144,1736565032578,-2725.19359388,0.0002,10]
[348482158,1736565037985,-500.0,0.00019995,2]
[348482159,1736565037995,-500.0,0.00019995,2]
[348482160,1736565038004,-88.31219625,0.00019995,2]
[348482161,1736565038016,-411.68780375,0.00019995,2]
[348482162,1736565038025,-500.0,0.00019995,2]
[348482163,1736565038035,-500.0,0.00019995,2]
[348482164,1736565038044,-500.0,0.00019995,2]
[348482165,1736565038055,-119.54335908,0.00019995,2]
[348482166,1736565038067,-53.02567732,0.00019995,2]
[348482168,1736565038076,-500.0,0.00019995,2]
[348482169,1736565038085,-241.54970926,0.00019995,2]
[348482170,1736565038096,-500.0,0.00019995,2]
[348482171,1736565038106,-500.0,0.00019995,2]
[348482172,1736565038115,-500.0,0.00019995,2]
[348482173,1736565038124,-500.0,0.00019995,2]
[348482174,1736565038133,-500.0,0.00019995,2]
[348482175,1736565038144,-500.0,0.00019995,2]
[348482176,1736565038155,-500.0,0.00019995,2]
[348482177,1736565038164,-500.0,0.00019995,2]
[348482178,1736565038174,-500.0,0.00019995,2]
[348482179,1736565038183,-500.0,0.00019995,2]
[348482180,1736565038192,-500.0,0.00019995,2]
[348482181,1736565038201,-500.0,0.00019995,2]
[348482182,1736565038211,-500.0,0.00019995,2]
[348482183,1736565038220,-500.0,0.00019995,2]
[348482184,1736565038230,-500.0,0.00019995,2]
[348482185,1736565038241,-500.0,0.00019995,2]
[348482186,1736565038253,-500.0,0.00019995,2]
[348482187,1736565038263,-27274.80640612,0.0002,10]
[348482188,1736565038273,-30000.0,0.0002,10]
[348482189,1736565038283,-29896.96184234,0.0002,10]
[348482190,1736565038292,-151.0,0.0002,2]
[348482191,1736565038299,-151.0,0.0002,2]
[348482192,1736565038308,-151.0,0.0002,2]
[348482193,1736565038318,-151.0,0.0002,2]
[348482194,1736565038327,-159.410969,0.00020468,2]
[348482195,1736565038337,-6395.6594406,0.00020468,2]
[348482196,1736565038347,-162.8311925,0.00020521,2]
[348482197,1736565038356,-1251.0,0.00020609,2]
[348482198,1736565038366,-582.084,0.0002082,2]
[348482199,1736565038379,-1292.3338789,0.000209,2]
[348482200,1736565038388,-1292.33387878,0.00021003,2]
[348482201,1736565038397,-1292.33387878,0.00021107,2]
[348482202,1736565038407,-154.5829004,0.00021178,2]
[348482203,1736565038416,-153.0,0.00021178,2]
[348482204,1736565038426,-153.0,0.00021178,2]
[348482205,1736565038436,-153.0,0.00021178,2]
[348482206,1736565038446,-1292.33387878,0.0002121,2]
[348482207,1736565038456,-1292.33387878,0.00021314,2]
[348482208,1736565038467,-151.0,0.00021314,2]
[348482209,1736565038476,-224.038033,0.00021314,2]
[348482210,1736565038486,-160.133786,0.00021314,2]
[348482211,1736565038497,-224.038033,0.00021314,2]
[348482212,1736565038506,-152.190608,0.00021314,2]
[348482213,1736565038517,-10431.48476372,0.00021324,2]
[348482214,1736565038527,-151.0,0.0002139,2]
[348482215,1736565038538,-224.038033,0.0002139,2]
[348482216,1736565038548,-224.038033,0.0002139,2]
[348482217,1736565038557,-1292.33387878,0.00021417,2]
[348482218,1736565038568,-1292.33387878,0.00021521,2]
[348482219,1736565038578,-151.0,0.00021553,2]
[348482220,1736565038587,-224.038033,0.00021553,2]
[348482221,1736565038599,-224.038033,0.00021553,2]
[348482222,1736565038608,-10431.48476373,0.00021599,2]
[348482223,1736565038618,-1292.33387878,0.00021624,2]
[348482224,1736565038628,-151.0,0.00021673,2]
[348482225,1736565038640,-151.0,0.00021673,2]
[348482226,1736565038650,-151.0,0.00021673,2]
[348482227,1736565038659,-151.0,0.00021673,2]
[348482228,1736565038668,-240.541568,0.00021673,2]
[348482229,1736565038678,-224.038033,0.00021673,2]
[348482230,1736565038688,-224.038033,0.00021673,2]
[348482231,1736565038698,-224.038033,0.00021673,2]
[348482232,1736565038708,-224.038033,0.00021673,2]
[348482233,1736565038717,-224.038033,0.00021673,2]
[348482234,1736565038727,-224.038033,0.00021673,2]
[348482235,1736565038736,-224.038033,0.00021673,2]
[348482236,1736565038747,-224.038033,0.00021673,2]
[348482237,1736565038758,-224.038033,0.00021673,2]
[348482238,1736565038767,-224.038033,0.00021673,2]
[348482239,1736565038777,-160.312958,0.00021674,2]
[348482240,1736565038787,-1292.33387878,0.00021728,2]
[348482241,1736565038796,-420.0,0.00021772,2]
[348482242,1736565038805,-1292.33387878,0.00021831,2]
[348482243,1736565038815,-151.0,0.00021913,2]
[348482244,1736565038825,-151.0,0.00021913,2]
[348482245,1736565038837,-151.0,0.00021913,2]
[348482246,1736565038850,-151.0,0.00021913,2]
[348482247,1736565038861,-151.0,0.00021913,2]
[348482248,1736565038871,-154.717612,0.00021914,2]
[348482249,1736565038881,-163.056977,0.00021914,2]
[348482250,1736565038892,-172.305944,0.00021914,2]
[348482251,1736565038902,-172.305944,0.00021914,2]
[348482252,1736565038912,-172.305944,0.00021914,2]
[348482253,1736565038921,-172.305944,0.00021914,2]
[348482254,1736565038931,-172.305944,0.00021914,2]
[348482255,1736565038941,-172.305944,0.00021914,2]
[348482256,1736565038951,-172.305944,0.00021914,2]
[348482257,1736565038961,-172.305944,0.00021914,2]
[348482258,1736565038971,-172.305944,0.00021914,2]
[348482259,1736565038981,-172.305944,0.00021914,2]
[348482260,1736565038990,-224.038033,0.00021914,2]
[348482261,1736565039000,-224.038033,0.00021914,2]
[348482262,1736565039010,-151.0,0.00021915,2]
[348482263,1736565039019,-151.0,0.00021915,2]
[348482264,1736565039028,-151.0,0.00021915,2]
[348482265,1736565039038,-151.0,0.00021915,2]
[348482266,1736565039047,-157.34957,0.00021915,2]
[348482267,1736565039059,-152.972493,0.00021915,2]
[348482268,1736565039069,-497.93807872,0.00021916,2]
[348482269,1736565039079,-155.200933,0.00021917,2]
[348482270,1736565039088,-156.943963,0.00021917,2]
[348482271,1736565039099,-151.0,0.00021917,2]
[348482272,1736565039109,-151.0,0.00021917,2]
[348482273,1736565039119,-151.0,0.00021917,2]
[348482274,1736565039128,-159.123718,0.00021917,2]
[348482275,1736565039138,-151.0,0.00021917,2]
[348482276,1736565039148,-153.202421,0.00021917,2]
[348482277,1736565039158,-188.271377,0.00021917,2]
[348482278,1736565039168,-151.0,0.00021917,2]
[348482279,1736565039178,-151.0,0.00021917,2]
[348482280,1736565039188,-155.361685,0.00021917,2]
[348482281,1736565039197,-502.69495489,0.00021917,3]
[348482282,1736565039207,-507.67430517,0.00021917,3]
[348482283,1736565039218,-151.0,0.00021917,2]
[348482284,1736565039228,-151.0,0.00021917,2]
[348482285,1736565039240,-151.0,0.00021917,2]
[348482286,1736565039252,-151.0,0.00021917,2]
[348482287,1736565039262,-500.0,0.00021917,3]
[348482288,1736565039283,-151.0,0.00021917,2]
[348482289,1736565039308,-151.0,0.00021917,2]
[348482290,1736565039322,-197.019186,0.00021917,2]
[348482291,1736565039337,-503.20261382,0.00021917,3]
[348482292,1736565039366,-509.77924054,0.00021917,3]
[348482293,1736565039379,-504.6978966,0.00021917,3]
[348482294,1736565039393,-190.50048245,0.00021917,2]
[348482295,1736565039404,-531.60298647,0.00021917,3]
[348482296,1736565039414,-195.87497677,0.00021917,3]
[348482297,1736565039424,-506.27434933,0.00021917,3]
[348482298,1736565039434,-506.62835688,0.00021917,3]
[348482299,1736565039443,-506.36822785,0.00021917,3]
[348482300,1736565039452,-505.45310313,0.00021917,3]
[348482301,1736565039462,-506.34924231,0.00021917,3]
[348482302,1736565039471,-504.60381849,0.00021917,3]
[348482303,1736565039481,-500.0,0.00021917,3]
[348482304,1736565039491,-165.85342597,0.00021917,3]
[348482305,1736565039500,-509.56736101,0.00021917,3]
[348482306,1736565039510,-393.66566409,0.00021917,3]
[348482307,1736565039519,-508.79571023,0.00021917,3]
[348482308,1736565039528,-500.0,0.00021917,3]
[348482309,1736565039537,-509.41555398,0.00021917,3]
[348482310,1736565039547,-505.33561773,0.00021917,3]
[348482311,1736565039557,-522.32600778,0.00021917,3]
[348482312,1736565039567,-506.02278789,0.00021917,3]
[348482313,1736565039576,-503.924516,0.00021917,3]
[348482314,1736565039585,-500.0,0.00021917,3]
[348482315,1736565039596,-505.11851769,0.00021917,3]
[348482316,1736565039606,-509.37974157,0.00021917,3]
[348482317,1736565039615,-500.0,0.00021917,3]
[348482318,1736565039625,-500.0,0.00021917,3]
[348482319,1736565039635,-500.0,0.00021917,3]
[348482321,1736565039645,-500.0,0.00021917,3]
[348482322,1736565039654,-500.0,0.00021917,3]
[348482323,1736565039664,-500.0,0.00021917,3]
[348482324,1736565039673,-500.0,0.00021917,3]
[348482325,1736565039683,-500.0,0.00021917,3]
[348482326,1736565039693,-406.18567272,0.00021917,3]
[348482327,1736565039702,-500.0,0.00021917,3]
[348482328,1736565039712,-500.0,0.00021917,3]
[348482329,1736565039722,-500.0,0.00021917,3]
[348482330,1736565039731,-500.0,0.00021917,3]
[348482331,1736565039741,-506.55008013,0.00021917,3]
[348482332,1736565039751,-500.0,0.00021917,3]
[348482333,1736565039761,-508.85720717,0.00021917,3]
[348482334,1736565039771,-265.9561091,0.00021917,3]
[348482335,1736565039781,-506.05868641,0.00021917,3]
[348482336,1736565039790,-500.0,0.00021917,3]
[348482337,1736565039800,-327.46010724,0.00021917,3]
[348482338,1736565039810,-500.0,0.00021917,3]
[348482339,1736565039819,-507.80852205,0.00021917,3]
[348482340,1736565039829,-503.55958208,0.00021917,2]
[348482341,1736565039838,-172.305944,0.00021917,2]
[348482342,1736565039853,-172.305944,0.00021917,2]
[348482343,1736565039863,-172.305944,0.00021917,2]
[348482344,1736565039873,-172.305944,0.00021917,2]
[348482345,1736565039883,-172.305944,0.00021917,2]
[348482347,1736565039892,-172.305944,0.00021917,2]
[348482349,1736565039902,-172.305944,0.00021917,2]
[348482351,1736565039913,-172.305944,0.00021917,2]
[348482352,1736565039923,-172.305944,0.00021917,2]
[348482353,1736565039932,-172.305946,0.00021917,2]
[348482354,1736565039942,-503.9968336,0.00021917,3]
[348482355,1736565039954,-500.0,0.00021917,3]
[348482356,1736565039964,-500.0,0.00021917,3]
[348482357,1736565039973,-500.0,0.00021917,3]
[348482358,1736565039982,-512.77961251,0.00021917,3]
[348482359,1736565039992,-512.79981989,0.00021917,3]
[348482360,1736565040002,-500.0,0.00021917,3]
[348482361,1736565040011,-461.14957074,0.00021917,3]
[348482362,1736565040020,-511.62753844,0.00021917,3]
[348482363,1736565040029,-500.0,0.00021917,3]
[348482364,1736565040039,-500.0,0.00021917,3]
[348482365,1736565040049,-500.0,0.00021917,3]
[348482366,1736565040061,-687.34,0.00021917,3]
[348482367,1736565040071,-514.65575887,0.00021917,3]
[348482368,1736565040081,-511.11857554,0.00021917,3]
[348482369,1736565040091,-151.0,0.00021917,2]
[348482370,1736565040101,-151.0,0.00021917,2]
[348482371,1736565040110,-151.0,0.00021917,2]
[348482372,1736565040120,-179.915852,0.00021917,2]
[348482373,1736565040129,-504.7453325,0.00021917,2]
[348482374,1736565040139,-500.0,0.00021917,3]
[348482375,1736565040148,-422.5844712,0.00021917,3]
[348482376,1736565040157,-500.0,0.00021917,3]
[348482377,1736565040167,-500.0,0.00021917,3]
[348482378,1736565040176,-516.82460532,0.00021917,3]
[348482379,1736565040185,-500.0,0.00021917,3]
[348482380,1736565040195,-536.12,0.00021917,3]
[348482381,1736565040204,-511.87894812,0.00021917,3]
[348482382,1736565040214,-500.0,0.00021917,3]
[348482383,1736565040223,-500.0,0.00021917,3]
[348482384,1736565040233,-500.0,0.00021917,3]
[348482385,1736565040242,-482.05669976,0.00021917,2]
[348482386,1736565040252,-202.64316647,0.00021917,3]
[348482387,1736565040262,-443.70755651,0.00021917,3]
[348482388,1736565040271,-519.24,0.00021917,3]
[348482389,1736565040280,-506.72876644,0.00021917,3]
[348482390,1736565040290,-500.0,0.00021917,3]